fUSD/lending_fUSD_20240416
["ID","MTS","AMOUNT","RATE_DAILY","PERIOD"]
[322701206,1713225606930,156.66,0.00017727,2]
[322701254,1713226231537,-327.61048587,0.00018999,2]
[322701255,1713226231650,-876.38951413,0.00018999,2]
[322701256,1713226231659,-1550.0,0.00019,3]
[322701257,1713226231668,-150.0,0.00019098,2]
[322701258,1713226231677,-21125.40363092,0.00019099,2]
[322701259,1713226231686,-228.32,0.00019535,2]
[322701260,1713226231695,-1000.0,0.00019636,2]
[322701261,1713226231704,-23900.0,0.00019637,2]
[322701262,1713226231714,-1000.0,0.00019705,2]
[322701263,1713226231723,-575.20925308,0.00019809,2]
[322701264,1713226231732,-493.67198304,0.0001983,2]
[322701265,1713226231741,-184.77,0.00019899,2]
[322701266,1713226231751,-3378.54108249,0.00019899,2]
[322701267,1713226231760,-224958.4673,0.000199,2]
[322701268,1713226231769,-575.20925302,0.0001993,2]
[322701269,1713226231779,-493.67198299,0.00019949,2]
[322701270,1713226231788,-575.20925302,0.00020051,2]
[322701271,1713226231798,-493.67198299,0.00020068,2]
[322701273,1713226231807,-156.66,0.00020117,2]
[322701275,1713226231816,-575.20925302,0.00020173,2]
[322701277,1713226231826,-493.67198299,0.00020187,2]
[322701279,1713226231835,-575.20925302,0.00020294,2]
[322701281,1713226231845,-493.67198299,0.00020306,2]
[322701283,1713226231857,-575.20925302,0.00020415,2]
[322701285,1713226231866,-493.67198299,0.00020424,2]
[322701287,1713226231875,-575.20925302,0.00020536,2]
[322701289,1713226231884,-493.67198299,0.00020543,2]
[322701291,1713226231894,-575.20925302,0.00020658,2]
[322701292,1713226231903,-493.67198299,0.00020662,2]
[322701293,1713226231912,-575.20925302,0.00020779,2]
[322701294,1713226231921,-493.67198299,0.00020781,2]
[322701295,1713226231931,-279.98463623,0.0002079,2]
[322701296,1713226231940,-154.98194738,0.000208,2]
[322701297,1713226231950,-154.98194736,0.00020814,2]
[322701298,1713226231959,-170.077878,0.00020822,2]
[322701299,1713226231969,-154.98194736,0.00020829,2]
[322701300,1713226231978,-154.98194736,0.00020843,2]
[322701301,1713226231987,-154.98194736,0.00020857,2]
[322701302,1713226231997,-154.98194736,0.00020871,2]
[322701303,1713226232006,-154.98194736,0.00020886,2]
[322701304,1713226232015,-189.49615626,0.00020899,2]
[322701305,1713226232024,-357.39700517,0.00020899,2]
[322701306,1713226232034,-156.04913271,0.00020899,2]
[322701307,1713226232043,-357.39700515,0.00020899,2]
[322701308,1713226232053,-357.39700515,0.00020899,2]
[322701309,1713226232066,-357.39700515,0.00020899,2]
[322701310,1713226232075,-357.39700515,0.00020899,2]
[322701311,1713226232084,-357.39700515,0.00020899,2]
[322701312,1713226232093,-357.39700515,0.000209,2]
[322701313,1713226232104,-357.39700515,0.000209,2]
[322701314,1713226232113,-357.39700515,0.000209,2]
[322701315,1713226232123,-357.39700515,0.000209,2]
[322701316,1713226232134,-357.39700515,0.000209,2]
[322701317,1713226232143,-28994.790916,0.000209,2]
[322701318,1713226232152,-7236.02986768,0.000209,2]
[322701319,1713226232164,-322.91174239,0.000209,2]
[322701320,1713226232177,-2564.90721598,0.000209,2]
[322701325,1713226237864,-155.0,0.00019898,2]
[322701326,1713226237876,-113587.86755387,0.000209,2]
[322701327,1713226237885,-1000.0,0.000209,2]
[322701328,1713226237895,-10000.0,0.000209,2]
[322701329,1713226237905,-358.53462888,0.000209,2]
[322701330,1713226237914,-212.4433,0.000209,2]
[322701333,1713226237924,-38187.3926129,0.000209,2]
[322701334,1713226237933,-5800.0,0.000209,2]
[322701337,1713226237942,-575.20925302,0.000209,2]
[322701338,1713226237952,-357.39700515,0.000209,2]
[322701340,1713226237960,-154.98194736,0.000209,2]
[322701341,1713226237969,-177.38769492,0.000209,2]
[322701343,1713226237979,-26481.59798551,0.000209,2]
[322701345,1713226237988,-3462.76197504,0.000209,2]
[322701347,1713226237998,-493.67198299,0.000209,2]
[322701348,1713226238007,-164.9429092,0.000209,2]
[322701350,1713226238016,-14220.43963213,0.00020922,2]
[322701352,1713226238025,-14220.43963213,0.00020932,2]
[322701354,1713226238034,-14220.43963213,0.00020945,2]
[322701356,1713226238042,-14220.43963213,0.00020946,2]
[322701359,1713226238053,-14220.43963213,0.0002095,2]
[322701360,1713226238065,-493.706,0.0002096,2]
[322701363,1713226238075,-14220.43963213,0.00020975,2]
[322701365,1713226238084,-14220.43963213,0.00020976,2]
[322701366,1713226238093,-14220.43963213,0.00020977,2]
[322701367,1713226238102,-2199.99999901,0.0002099,2]
[322701368,1713226238114,-14220.43963213,0.00020998,2]
[322701369,1713226238123,-2506.40460922,0.00020998,2]
[322701370,1713226238132,-225671.3043324,0.00020998,2]
[322701371,1713226238142,-96908.57333938,0.00020998,2]
[322701372,1713226238151,-2423.28988921,0.00020999,2]
[322701373,1713226238160,-232.08678696,0.00020999,2]
[322701374,1713226238169,-315196.79968942,0.00020999,2]
[322701375,1713226238179,-206.9318143,0.00020999,2]
[322701376,1713226238188,-4837.95514972,0.00020999,2]
[322701377,1713226238197,-300.0,0.00020999,2]
[322701378,1713226238206,-300.0,0.00020999,2]
[322701379,1713226238215,-300.0,0.00020999,2]
[322701380,1713226238224,-300.0,0.00020999,2]
[322701381,1713226238232,-300.0,0.00020999,2]
[322701382,1713226238241,-300.0,0.00020999,2]
[322701383,1713226238250,-241.30303205,0.00020999,2]
[322701384,1713226238258,-325.1385,0.00020999,2]
[322701385,1713226238267,-1000.0,0.00020999,2]
[322701386,1713226238276,-500.0,0.00020999,2]
[322701388,1713226238285,-500.0,0.00020999,2]
[322701389,1713226238294,-500.0,0.00020999,2]
[322701391,1713226238303,-500.0,0.00020999,2]
[322701393,1713226238312,-500.0,0.00020999,2]
[322701395,1713226238321,-500.0,0.00020999,2]
[322701397,1713226238330,-500.0,0.00020999,2]
[322701399,1713226238339,-500.0,0.00020999,2]
[322701401,1713226238348,-500.0,0.00020999,2]
[322701403,1713226238358,-500.0,0.00020999,2]
[322701405,1713226238367,-500.0,0.00020999,2]
[322701407,1713226238376,-500.0,0.00020999,2]
[322701409,1713226238385,-541.79983779,0.00020999,2]
[322701411,1713226238395,-500.0,0.00020999,2]
[322701413,1713226238404,-500.0,0.00020999,2]
[322701415,1713226238413,-500.0,0.00020999,2]
[322701417,1713226238422,-500.0,0.00020999,2]
[322701419,1713226238431,-500.0,0.00020999,2]
[322701421,1713226238441,-433.92576484,0.00020999,2]
[322701423,1713226238450,-434.95127031,0.00020999,2]
[322701425,1713226238459,-565.95976213,0.00021,2]
[322701427,1713226238468,-433726.42070297,0.00021,7]
[322701429,1713226238477,-1694858.37690901,0.00021,2]
[322701439,1713226238551,-707.41967,0.00021,2]
[322701442,1713226238570,-384.18897704,0.00021,2]
[322701913,1713226241278,-2560.0,0.00021,2]
[322701996,1713226242968,-2722.83393082,0.00021,2]
[322701997,1713226243066,-1048.62357802,0.00021,2]
[322701998,1713226243144,-19053.41832,0.00021,2]
[322702001,1713226243261,-1146.28054021,0.00021,2]
[322702018,1713226245574,-206.9318143,0.00020999,2]
[322702019,1713226245583,-1014.7881857,0.00020999,2]
[322702020,1713226245595,-456.80005735,0.00020999,2]
[322702021,1713226245629,-3366.36690666,0.00020999,2]
[322702022,1713226245638,-124772.15268272,0.00021,2]
[322702024,1713226522109,-1000.0,0.00019458,2]
[322702025,1713226522139,-109844.91985799,0.0002082,2]
[322702026,1713226522165,-291.61668198,0.00020896,2]
[322702027,1713226522189,-264.84656625,0.00020896,2]
[322702028,1713226522212,-291.61668189,0.00020896,2]
[322702029,1713226522233,-264.84656617,0.00020896,2]
[322702030,1713226522255,-291.61668189,0.00020897,2]
[322702031,1713226522276,-264.84656617,0.00020897,2]
[322702032,1713226522297,-291.61668189,0.00020897,2]
[322702033,1713226522321,-264.84656617,0.00020897,2]
[322702034,1713226522342,-291.61668189,0.00020898,2]
[322702035,1713226522364,-264.84656617,0.00020898,2]
[322702036,1713226522385,-291.61668189,0.00020898,2]
[322702037,1713226522406,-264.84656617,0.00020898,2]
[322702038,1713226522428,-291.61668189,0.00020899,2]
[322702039,1713226522451,-264.84656617,0.00020899,2]
[322702040,1713226522471,-291.61668189,0.00020899,2]
[322702041,1713226522494,-264.84656617,0.00020899,2]
[322702042,1713226522907,-291.61668189,0.000209,2]
[322702043,1713226522929,-264.84656617,0.000209,2]
[322702044,1713226522949,-7500.0,0.000209,2]
[322702045,1713226522970,-1000.0,0.000209,2]
[322702046,1713226522990,-330.5642764,0.000209,2]
[322702047,1713226523009,-10000.0,0.000209,2]
[322702048,1713226523029,-291.61668189,0.000209,2]
[322702049,1713226523049,-2575.73963047,0.000209,3]
[322702050,1713226523071,-264.84656617,0.000209,2]
[322702051,1713226523090,-307.86648046,0.000209,2]
[322702052,1713226523111,-2036.41921122,0.00020979,2]
[322702053,1713226523132,-3479.26962775,0.0002099,2]
[322702054,1713226523154,-57988.0820758,0.00020996,2]
[322702055,1713226523174,-777.6299252,0.00020996,2]
[322702056,1713226523195,-71620.5165528,0.00020996,2]
[322702057,1713226523216,-29573.4101009,0.00020996,2]
[322702058,1713226523236,-15828.1946121,0.00020996,2]
[322702059,1713226523257,-787.7421883,0.00020996,2]
[322702060,1713226523277,-256.6337147,0.00020996,2]
[322702061,1713226523297,-43342.8082075,0.00020996,2]
[322702062,1713226523319,-200.23312793,0.00020999,2]
[322702063,1713226523339,-229.42510936,0.00020999,2]
[322702064,1713226523361,-2000.0,0.00020999,2]
[322702065,1713226523381,-2000.0,0.00020999,2]
[322702066,1713226523401,-2000.0,0.00020999,2]
[322702067,1713226523420,-2000.0,0.00020999,2]
[322702068,1713226523441,-2000.0,0.00020999,2]
[322702069,1713226523461,-2000.0,0.00020999,2]
[322702070,1713226523481,-719.91282035,0.00020999,2]
[322702484,1713226777187,1100.0,0.00022,10]
[322702652,1713226834436,10000.0,0.00028308,120]
[322702669,1713226838756,152.041609,0.00028,30]
[322702710,1713226844989,153.041609,0.00028,30]
[322702734,1713226848938,154.041609,0.00028,30]
[322702735,1713226849588,8130.0,0.00028308,120]
[322702737,1713226854599,155.041609,0.00028,30]
[322702738,1713226858198,156.041609,0.00028,30]
[322702740,1713226863096,157.041609,0.00028,30]
[322702753,1713226868392,158.041609,0.00028,30]
[322702770,1713226872232,159.041609,0.00028,30]
[322702790,1713226877187,160.041609,0.00028,30]
[322702799,1713226880581,161.041609,0.00028,30]
[322702817,1713226884959,162.041609,0.00028,30]
[322702847,1713226893508,163.041609,0.00028,30]
[322702860,1713226897419,164.041609,0.00028,30]
[322702864,1713226900788,165.041609,0.00028,30]
[322702878,1713226904587,166.041609,0.00028,30]
[322702885,1713226908798,167.041609,0.00028,30]
[322702889,1713226913829,168.041609,0.00028,30]
[322702890,1713226914519,200.0,0.00020547,10]
[322702896,1713226918225,169.041609,0.00028,30]
[322702897,1713226918466,200.0,0.00020899,10]
[322702898,1713226918625,200.0,0.00020997,10]
[322702899,1713226918903,200.0,0.00020997,10]
[322702900,1713226919191,200.0,0.00020998,10]
[322702901,1713226919347,200.0,0.00020999,10]
[322702902,1713226919863,200.0,0.00020999,10]
[322702903,1713226920145,200.0,0.00020999,10]
[322702904,1713226920304,202.97882935,0.00020999,10]
[322702908,1713226923701,170.041609,0.00028,30]
[322702924,1713226927847,171.041609,0.00028,30]
[322702939,1713226932266,172.041609,0.00028,30]
[322702953,1713226936174,173.041609,0.00028,30]
[322702968,1713226940492,174.041609,0.00028,30]
[322702986,1713226943832,175.041609,0.00028,30]
[322702995,1713226947664,176.041609,0.00028,30]
[322702999,1713226952197,177.041609,0.00028,30]
[322703004,1713226955705,178.041609,0.00028,30]
[322703008,1713226961509,179.041609,0.00028,30]
[322703009,1713226965010,180.041609,0.00028,30]
[322703013,1713226969475,181.041609,0.00028,30]
[322703018,1713226973133,182.041609,0.00028,30]
[322703033,1713226976413,183.041609,0.00028,30]
[322703039,1713226979493,184.041609,0.00028,30]
[322703043,1713226983679,185.041609,0.00028,30]
[322703044,1713226986884,186.041609,0.00028,30]
[322703045,1713226990186,187.041609,0.00028,30]
[322703046,1713226994063,188.041609,0.00028,30]
[322703057,1713226997449,189.041609,0.00028,30]
[322703076,1713227003027,190.041609,0.00028,30]
[322703086,1713227006213,191.041609,0.00028,30]
[322703090,1713227010172,192.041609,0.00028,30]
[322703091,1713227013710,193.041609,0.00028,30]
[322703095,1713227018013,194.041609,0.00028,30]
[322703100,1713227021516,195.041609,0.00028,30]
[322703112,1713227025561,196.041609,0.00028,30]
[322703113,1713227028771,197.041609,0.00028,30]
[322703123,1713227032988,198.041609,0.00028,30]
[322703132,1713227036711,199.041609,0.00028,30]
[322703149,1713227041412,200.041609,0.00028,30]
[322703158,1713227044690,201.041609,0.00028,30]
[322703159,1713227047564,202.041609,0.00028,30]
[322703160,1713227050517,203.041609,0.00028,30]
[322703161,1713227053515,204.041609,0.00028,30]
[322703165,1713227056551,205.041609,0.00028,30]
[322703168,1713227061033,206.041609,0.00028,30]
[322703169,1713227064975,207.041609,0.00028,30]
[322703170,1713227068838,208.041609,0.00028,30]
[322703171,1713227071712,209.041609,0.00028,30]
[322703176,1713227076218,210.041609,0.00028,30]
[322703186,1713227089670,211.041609,0.00028,30]
[322703190,1713227114802,151.041609,0.00028,30]
[322703202,1713227119784,157.041609,0.00028,30]
[322703205,1713227125925,163.041609,0.00028,30]
[322703210,1713227129861,167.041609,0.00028,30]
[322703212,1713227135717,173.041609,0.00028,30]
[322703222,1713227140616,179.041609,0.00028,30]
[322703224,1713227146300,181.041609,0.00028,30]
[322703225,1713227151361,191.041609,0.00028,30]
[322703226,1713227157417,193.041609,0.00028,30]
[322703232,1713227162075,197.041609,0.00028,30]
[322703236,1713227166164,199.041609,0.00028,30]
[322703267,1713227172708,211.041609,0.00028,30]
[322703292,1713227177801,223.041609,0.00028,30]
[322703308,1713227181842,227.041609,0.00028,30]
[322703319,1713227187522,229.041609,0.00028,30]
[322703346,1713227193289,233.041609,0.00028,30]
[322703347,1713227197414,239.041609,0.00028,30]
[322703350,1713227202913,241.041609,0.00028,30]
[322703361,1713227207422,251.041609,0.00028,30]
[322703369,1713227213249,257.041609,0.00028,30]
[322703370,1713227219014,263.041609,0.00028,30]
[322703371,1713227223921,269.041609,0.00028,30]
[322703376,1713227228838,271.041609,0.00028,30]
[322703382,1713227234513,277.041609,0.00028,30]
[322703397,1713227239512,281.041609,0.00028,30]
[322703419,1713227245159,283.041609,0.00028,30]
[322703420,1713227248652,293.041609,0.00028,30]
[322703421,1713227256071,307.041609,0.00028,30]
[322703422,1713227260818,311.041609,0.00028,30]
[322703423,1713227264520,313.041609,0.00028,30]
[322703424,1713227269901,317.041609,0.00028,30]
[322703428,1713227275630,331.041609,0.00028,30]
[322703434,1713227281710,337.041609,0.00028,30]
[322703438,1713227287527,347.041609,0.00028,30]
[322703439,1713227293591,349.041609,0.00028,30]
[322703443,1713227298469,353.041609,0.00028,30]
[322703445,1713227303945,359.041609,0.00028,30]
[322703446,1713227308678,367.041609,0.00028,30]
[322703458,1713227318580,373.041609,0.00028,30]
[322703460,1713227322635,379.041609,0.00028,30]
[322703475,1713227328257,383.041609,0.00028,30]
[322703496,1713227333826,389.041609,0.00028,30]
[322703502,1713227339693,175.54808971,0.00026438,30]
[322703503,1713227339895,175.54808971,0.00026822,30]
[322703504,1713227340608,397.041609,0.00028,30]
[322703508,1713227346860,401.041609,0.00028,30]
[322703509,1713227352055,409.041609,0.00028,30]
[322703511,1713227357947,419.041609,0.00028,30]
[322703512,1713227363485,421.041609,0.00028,30]
[322703513,1713227368193,431.041609,0.00028,30]
[322703515,1713227371026,156.66,0.00017745,2]
[322703519,1713227373681,433.041609,0.00028,30]
[322703520,1713227383177,439.041609,0.00028,30]
[322703521,1713227388502,443.041609,0.00028,30]
[322703524,1713227393782,449.041609,0.00028,30]
[322703526,1713227399033,457.041609,0.00028,30]
[322703542,1713227403598,461.041609,0.00028,30]
[322703552,1713227409857,463.041609,0.00028,30]
[322703556,1713227414453,467.041609,0.00028,30]
[322703560,1713227418911,479.041609,0.00028,30]
[322703561,1713227424854,487.041609,0.00028,30]
[322703566,1713227431727,491.041609,0.00028,30]
[322703567,1713227432201,-266.09104097,0.00019,3]
[322703568,1713227432243,-1201.23696859,0.00019,3]
[322703569,1713227432258,-82.67199044,0.00019,3]
[322703570,1713227432268,-1346.78709982,0.00019695,2]
[322703571,1713227432281,-779.54000024,0.00019695,2]
[322703572,1713227432304,-254.77447361,0.00019695,2]
[322703573,1713227432316,-1268.77248,0.00019695,2]
[322703574,1713227435677,499.041609,0.00028,30]
[322703593,1713227437663,-20250.12594633,0.00019695,2]
[322703595,1713227437673,-383.88,0.00019816,2]
[322703597,1713227437682,-164.19,0.00020104,2]
[322703599,1713227437692,-164.19,0.00020278,2]
[322703601,1713227437701,-505.21,0.00020287,6]
[322703603,1713227437711,-2200.97644784,0.00020287,6]
[322703608,1713227437876,-17887.66355216,0.00020287,6]
[322703609,1713227437885,-11039.21,0.00020287,6]
[322703610,1713227437894,-199.73,0.00020287,6]
[322703611,1713227437903,-36736.42,0.00020287,6]
[322703612,1713227437913,-7531.92,0.00020287,6]
[322703613,1713227437922,-13476.9,0.00020287,6]
[322703614,1713227437931,-156.66,0.00020434,2]
[322703615,1713227437941,-349.13760721,0.00020447,2]
[322703616,1713227437950,-178.69850258,0.00020447,2]
[322703617,1713227437959,-395.17056899,0.00020447,2]
[322703618,1713227437967,-307.86648046,0.00020447,2]
[322703619,1713227437976,-8827.19932851,0.00020447,2]
[322703620,1713227437986,-156.04913268,0.00020447,2]
[322703621,1713227437995,-754.6492,0.00020447,2]
[322703622,1713227438004,-164.19,0.00020453,2]
[322703623,1713227438013,-165.2821382,0.00020487,2]
[322703624,1713227438022,-499.99,0.00020487,2]
[322703625,1713227438031,-349.1376072,0.00020497,2]
[322703626,1713227438041,-156.04913268,0.00020497,2]
[322703627,1713227438050,-3479.26962775,0.00020537,2]
[322703629,1713227438059,-164.83,0.00020537,2]
[322703631,1713227438069,-3453.08064448,0.00020546,2]
[322703633,1713227438078,-997.56,0.00020547,2]
[322703636,1713227438088,-1838.0,0.00020547,2]
[322703638,1713227438098,-500.0,0.00020547,2]
[322703640,1713227438107,-500.0,0.00020547,2]
[322703642,1713227438116,-535.35803841,0.00020547,2]
[322703644,1713227438125,-542.25,0.00020547,2]
[322703646,1713227438134,-500.0,0.00020547,2]
[322703647,1713227438143,-509.02025287,0.00020547,2]
[322703649,1713227438152,-500.0,0.00020547,2]
[322703651,1713227438161,-515.11706481,0.00020547,2]
[322703653,1713227438170,-763.7,0.00020547,2]
[322703655,1713227438179,-500.0,0.00020547,2]
[322703657,1713227438189,-500.0,0.00020547,2]
[322703659,1713227438198,-500.0,0.00020547,2]
[322703661,1713227438207,-500.0,0.00020547,2]
[322703663,1713227438216,-500.0,0.00020547,2]
[322703665,1713227438225,-2544.67,0.00020547,2]
[322703667,1713227438235,-500.0,0.00020547,2]
[322703669,1713227438244,-856.16,0.00020547,2]
[322703671,1713227438253,-500.0,0.00020547,2]
[322703673,1713227438263,-500.0,0.00020547,2]
[322703675,1713227438272,-500.0,0.00020547,2]
[322703677,1713227438281,-500.0,0.00020547,2]
[322703679,1713227438290,-500.0,0.00020547,2]
[322703681,1713227438299,-500.0,0.00020547,2]
[322703682,1713227438308,-500.0,0.00020547,2]
[322703683,1713227438317,-500.0,0.00020547,2]
[322703684,1713227438327,-1532.33,0.00020547,2]
[322703685,1713227438336,-500.0,0.00020547,2]
[322703686,1713227438345,-500.0,0.00020547,2]
[322703687,1713227438354,-500.0,0.00020547,2]
[322703688,1713227438364,-769.31,0.00020547,2]
[322703689,1713227438373,-500.0,0.00020547,2]
[322703690,1713227438382,-1964.8,0.00020547,2]
[322703691,1713227438391,-500.0,0.00020547,2]
[322703692,1713227438400,-500.0,0.00020547,2]
[322703693,1713227438410,-562.55,0.00020547,2]
[322703694,1713227438426,-500.0,0.00020547,2]
[322703695,1713227438436,-500.0,0.00020547,2]
[322703697,1713227438445,-1509.47,0.00020547,2]
[322703699,1713227438454,-500.0,0.00020547,2]
[322703701,1713227438463,-204.75642404,0.00020547,2]
[322703703,1713227438472,-500.0,0.00020547,2]
[322703705,1713227438481,-577.19710178,0.00020547,2]
[322703707,1713227438491,-500.0,0.00020547,2]
[322703709,1713227438500,-500.0,0.00020547,2]
[322703711,1713227438511,-500.0,0.00020547,2]
[322703713,1713227438521,-500.0,0.00020547,2]
[322703715,1713227438531,-500.0,0.00020547,2]
[322703717,1713227438540,-500.0,0.00020547,2]
[322703719,1713227438550,-500.0,0.00020547,2]
[322703721,1713227438560,-500.0,0.00020547,2]
[322703723,1713227438569,-500.0,0.00020547,2]
[322703725,1713227438578,-500.0,0.00020547,2]
[322703727,1713227438587,-500.0,0.00020547,2]
[322703729,1713227438596,-320.90681947,0.00020547,2]
[322703731,1713227438605,-500.0,0.00020547,2]
[322703733,1713227438614,-500.0,0.00020547,2]
[322703735,1713227438623,-500.44544414,0.00020547,2]
[322703737,1713227438632,-502.17912713,0.00020547,2]
[322703739,1713227438642,-555.9,0.00020547,2]
[322703741,1713227438652,-500.0,0.00020547,2]
[322703743,1713227438661,-500.0,0.00020547,2]
[322703745,1713227438670,-568.16,0.00020547,2]
[322703747,1713227438679,-796.33,0.00020547,2]
[322703749,1713227438689,-504.17336944,0.00020547,2]
[322703751,1713227438698,-500.0,0.00020547,2]
[322703753,1713227438706,-1238.0,0.00020547,2]
[322703755,1713227438716,-500.0,0.00020547,2]
[322703757,1713227438725,-1588.0,0.00020547,2]
[322703759,1713227438734,-568.00693334,0.00020547,2]
[322703761,1713227438743,-687.3,0.00020547,2]
[322703763,1713227438752,-500.0,0.00020547,2]
[322703765,1713227438762,-769.0,0.00020547,2]
[322703767,1713227438771,-500.0,0.00020547,2]
[322703769,1713227438780,-1248.15,0.00020547,2]
[322703771,1713227438789,-500.0,0.00020547,2]
[322703773,1713227438799,-500.0,0.00020547,2]
[322703775,1713227438807,-794.89,0.00020547,2]
[322703777,1713227438817,-500.0,0.00020547,2]
[322703779,1713227438825,-1146.71,0.00020547,2]
[322703781,1713227438834,-500.0,0.00020547,2]
[322703783,1713227438843,-564.41,0.00020547,2]
[322703785,1713227438852,-522.02,0.00020547,2]
[322703787,1713227438861,-618.28,0.00020547,2]
[322703789,1713227438870,-500.0,0.00020547,2]
[322703791,1713227438879,-500.0,0.00020547,2]
[322703793,1713227438888,-500.0,0.00020547,2]
[322703795,1713227438897,-500.0,0.00020547,2]
[322703797,1713227438906,-500.0,0.00020547,2]
[322703799,1713227438915,-500.0,0.00020547,2]
[322703801,1713227438924,-500.0,0.00020547,2]
[322703803,1713227438933,-1268.44,0.00020547,2]
[322703805,1713227438942,-500.0,0.00020547,2]
[322703807,1713227438952,-500.0,0.00020547,2]
[322703809,1713227438961,-644.85107744,0.00020547,2]
[322703811,1713227438970,-500.0,0.00020547,2]
[322703813,1713227438979,-1284.12,0.00020547,2]
[322703815,1713227438987,-500.0,0.00020547,2]
[322703817,1713227438997,-500.0,0.00020547,2]
[322703820,1713227439006,-500.0,0.00020547,2]
[322703822,1713227439017,-500.0,0.00020547,2]
[322703823,1713227439026,-500.0,0.00020547,2]
[322703826,1713227439035,-600.59,0.00020547,2]
[322703828,1713227439045,-500.0,0.00020547,2]
[322703829,1713227439054,-500.0,0.00020547,2]
[322703830,1713227439063,-1090.77,0.00020547,2]
[322703832,1713227439072,-500.0,0.00020547,2]
[322703834,1713227439081,-500.0,0.00020547,2]
[322703836,1713227439090,-500.0,0.00020547,2]
[322703838,1713227439099,-1199.57,0.00020547,2]
[322703840,1713227439107,-1107.95,0.00020547,2]
[322703842,1713227439117,-500.0,0.00020547,2]
[322703844,1713227439126,-500.0,0.00020547,2]
[322703846,1713227439134,-500.0,0.00020547,2]
[322703848,1713227439144,-500.0,0.00020547,2]
[322703849,1713227439153,-746.95,0.00020547,2]
[322703851,1713227439163,-500.0,0.00020547,2]
[322703853,1713227439172,-500.0,0.00020547,2]
[322703855,1713227439181,-500.0,0.00020547,2]
[322703857,1713227439190,-500.0,0.00020547,2]
[322703859,1713227439199,-500.0,0.00020547,2]
[322703861,1713227439208,-500.0,0.00020547,2]
[322703863,1713227439217,-500.0,0.00020547,2]
[322703865,1713227439226,-1872.73,0.00020547,2]
[322703867,1713227439235,-543.74,0.00020547,2]
[322703869,1713227439244,-500.0,0.00020547,2]
[322703871,1713227439253,-250.5972112,0.00020547,2]
[322703873,1713227439263,-3735.56,0.00020547,2]
[322703875,1713227439272,-500.0,0.00020547,2]
[322703877,1713227439281,-500.0,0.00020547,2]
[322703879,1713227439290,-1908.76,0.00020547,2]
[322703881,1713227439299,-183.8512503,0.00020547,2]
[322703883,1713227439309,-1369.53,0.00020547,2]
[322703885,1713227439318,-632.06,0.00020547,2]
[322703887,1713227439327,-500.0,0.00020547,2]
[322703889,1713227439337,-500.0,0.00020547,2]
[322703891,1713227439346,-500.0,0.00020547,2]
[322703893,1713227439356,-953.22,0.00020547,2]
[322703895,1713227439367,-500.0,0.00020547,2]
[322703897,1713227439377,-936.18,0.00020547,2]
[322703898,1713227439387,-500.0,0.00020547,2]
[322703900,1713227439396,-500.0,0.00020547,2]
[322703902,1713227439406,-500.0,0.00020547,2]
[322703904,1713227439416,-500.0,0.00020547,2]
[322703906,1713227439426,-500.0,0.00020547,2]